[Event "Titled Tuesday Blitz January 10 Late 2023"]
[White "Preotu, Razvan"]
[Black "Mendez Fortes, Eduardo Jesus"]
[WhiteFideId "2613280"]
[BlackFideId "3502376"]
[WhiteElo "2475"]
[BlackElo "2250"]
[Result "1-0"]
[Round "03"]
[TimeControl "180+2"]
[Date "2023.01.10"]
[WhiteClock "0:00:37"]
[BlackClock "0:00:31"]

1. e4 {[%clk 0:00:00]}  e5 {[%clk 0:00:00]} 2. Nf3 {[%clk 0:03:00]}  Nc6 {[%clk 0:02:59]} 3. Bc4 {[%clk 0:03:00]}  Nf6 {[%clk 0:03:00]} 4. d3 {[%clk 0:03:01]}  Bc5 {[%clk 0:02:59]} 5. c3 {[%clk 0:03:01]}  d6 {[%clk 0:02:59]} 6. O-O {[%clk 0:03:02]}  O-O {[%clk 0:02:59]} 7. Re1 {[%clk 0:03:02]}  Bb6 {[%clk 0:02:58]} 8. h3 {[%clk 0:03:03]}  Ne7 {[%clk 0:02:58]} 9. d4 {[%clk 0:03:01]}  Ng6 {[%clk 0:02:59]} 10. Bd3 {[%clk 0:02:51]}  c6 {[%clk 0:02:59]} 11. Be3 {[%clk 0:02:45]}  Bc7 {[%clk 0:02:58]} 12. Nbd2 {[%clk 0:02:41]}  b5 {[%clk 0:02:58]} 13. a4 {[%clk 0:02:41]}  Bd7 {[%clk 0:02:56]} 14. dxe5 {[%clk 0:02:40]}  dxe5 {[%clk 0:02:51]} 15. Nb3 {[%clk 0:02:32]}  a5 {[%clk 0:02:48]} 16. Nc5 {[%clk 0:02:33]}  h6 {[%clk 0:02:34]} 17. Bf1 {[%clk 0:02:32]}  bxa4 {[%clk 0:02:15]} 18. Qxa4 {[%clk 0:02:28]}  Bd6 {[%clk 0:02:01]} 19. Red1 {[%clk 0:02:25]}  Qc7 {[%clk 0:01:35]} 20. Nxd7 {[%clk 0:02:00]}  Nxd7 {[%clk 0:01:21]} 21. b4 {[%clk 0:01:28]}  axb4 {[%clk 0:01:19]} 22. Qxa8 {[%clk 0:01:28]}  Rxa8 {[%clk 0:01:04]} 23. Rxa8+ {[%clk 0:01:28]}  Kh7 {[%clk 0:01:05]} 24. Ra7 {[%clk 0:01:28]}  Qb8 {[%clk 0:01:06]} 25. Rxd7 {[%clk 0:01:28]}  b3 {[%clk 0:00:59]} 26. R7xd6 {[%clk 0:01:27]}  b2 {[%clk 0:00:59]} 27. Rxc6 {[%clk 0:01:03]}  b1=Q {[%clk 0:00:58]} 28. Rxb1 {[%clk 0:01:02]}  Qxb1 {[%clk 0:00:58]} 29. Nd2 {[%clk 0:01:02]}  Qc2 {[%clk 0:00:57]} 30. g3 {[%clk 0:01:00]}  Nf8 {[%clk 0:00:54]} 31. Rc7 {[%clk 0:00:59]}  f6 {[%clk 0:00:52]} 32. Bc4 {[%clk 0:00:55]}  Kg6 {[%clk 0:00:52]} 33. Bf7+ {[%clk 0:00:53]}  Kh7 {[%clk 0:00:45]} 34. h4 {[%clk 0:00:48]}  Qa4 {[%clk 0:00:44]} 35. Rc8 {[%clk 0:00:48]}  Nd7 {[%clk 0:00:36]} 36. h5 {[%clk 0:00:40]}  g5 {[%clk 0:00:34]} 37. hxg6+ {[%clk 0:00:39]}  Kg7 {[%clk 0:00:31]} 38. Rg8# {[%clk 0:00:37]} 1-0


[Site "https://www.chess.com"]

[Event "Titled Tuesday Blitz January 10 Late 2023"]
[White "Jaracz, Pawel"]
[Black "Tokhirjonova, Gulrukhbegim"]
[WhiteFideId "1102222"]
[BlackFideId "14203626"]
[WhiteElo "2467"]
[BlackElo "2340"]
[Result "1-0"]
[Round "03"]
[TimeControl "180+2"]
[Date "2023.01.10"]
[WhiteClock "0:00:07"]
[BlackClock "0:00:08"]

1. Nf3 {[%clk 0:00:00]}  d5 {[%clk 0:00:00]} 2. d4 {[%clk 0:03:00]}  Nf6 {[%clk 0:02:59]} 3. Bf4 {[%clk 0:03:00]}  c5 {[%clk 0:02:59]} 4. e3 {[%clk 0:02:59]}  Nc6 {[%clk 0:02:58]} 5. c3 {[%clk 0:02:59]}  e6 {[%clk 0:02:58]} 6. Nbd2 {[%clk 0:02:59]}  Bd6 {[%clk 0:02:58]} 7. Bg3 {[%clk 0:02:58]}  O-O {[%clk 0:02:57]} 8. Bd3 {[%clk 0:02:58]}  Qe7 {[%clk 0:02:55]} 9. Ne5 {[%clk 0:02:58]}  cxd4 {[%clk 0:02:50]} 10. exd4 {[%clk 0:02:57]}  Nd7 {[%clk 0:02:47]} 11. f4 {[%clk 0:02:56]}  f6 {[%clk 0:02:43]} 12. Nxd7 {[%clk 0:02:55]}  Bxd7 {[%clk 0:02:35]} 13. O-O {[%clk 0:02:09]}  Rae8 {[%clk 0:02:34]} 14. Qc2 {[%clk 0:02:04]}  g6 {[%clk 0:02:33]} 15. Nf3 {[%clk 0:01:58]}  Qg7 {[%clk 0:02:31]} 16. Rae1 {[%clk 0:01:58]}  a6 {[%clk 0:02:25]} 17. a3 {[%clk 0:01:54]}  b5 {[%clk 0:02:22]} 18. a4 {[%clk 0:01:46]}  b4 {[%clk 0:02:22]} 19. Bxa6 {[%clk 0:01:38]}  bxc3 {[%clk 0:02:20]} 20. bxc3 {[%clk 0:01:37]}  Qh6 {[%clk 0:02:18]} 21. Bb5 {[%clk 0:01:37]}  Rc8 {[%clk 0:02:12]} 22. Qd3 {[%clk 0:01:35]}  Rfd8 {[%clk 0:02:07]} 23. Ra1 {[%clk 0:01:15]}  Bxf4 {[%clk 0:02:01]} 24. Bxf4 {[%clk 0:01:05]}  Qxf4 {[%clk 0:01:28]} 25. Bxc6 {[%clk 0:01:04]}  Bxc6 {[%clk 0:01:29]} 26. Ne5 {[%clk 0:00:39]}  Qg5 {[%clk 0:01:29]} 27. Nxc6 {[%clk 0:00:39]}  Rxc6 {[%clk 0:01:28]} 28. a5 {[%clk 0:00:33]}  Rdc8 {[%clk 0:01:29]} 29. Ra3 {[%clk 0:00:33]}  f5 {[%clk 0:01:17]} 30. a6 {[%clk 0:00:33]}  Qd8 {[%clk 0:00:59]} 31. a7 {[%clk 0:00:33]}  Ra8 {[%clk 0:00:59]} 32. Rfa1 {[%clk 0:00:30]}  Qc7 {[%clk 0:00:59]} 33. Qb5 {[%clk 0:00:30]}  Kg7 {[%clk 0:00:58]} 34. h3 {[%clk 0:00:28]}  Kh6 {[%clk 0:00:52]} 35. Qd3 {[%clk 0:00:20]}  g5 {[%clk 0:00:52]} 36. Qe3 {[%clk 0:00:20]}  Kg6 {[%clk 0:00:51]} 37. Ra6 {[%clk 0:00:19]}  h6 {[%clk 0:00:49]} 38. c4 {[%clk 0:00:19]}  dxc4 {[%clk 0:00:39]} 39. d5 {[%clk 0:00:18]}  exd5 {[%clk 0:00:31]} 40. Qd4 {[%clk 0:00:18]}  Qd6 {[%clk 0:00:32]} 41. Rxc6 {[%clk 0:00:14]}  Qxc6 {[%clk 0:00:25]} 42. Ra5 {[%clk 0:00:12]}  c3 {[%clk 0:00:26]} 43. Rxd5 {[%clk 0:00:11]}  c2 {[%clk 0:00:17]} 44. Rd6+ {[%clk 0:00:11]}  Qxd6 {[%clk 0:00:09]} 45. Qxd6+ {[%clk 0:00:11]}  Kh5 {[%clk 0:00:10]} 46. Qc7 {[%clk 0:00:12]}  Rxa7 {[%clk 0:00:09]} 47. Qxc2 {[%clk 0:00:09]}  Rf7 {[%clk 0:00:09]} 48. Kh2 {[%clk 0:00:09]}  Kg6 {[%clk 0:00:09]} 49. Qc6+ {[%clk 0:00:09]}  Rf6 {[%clk 0:00:09]} 50. Qe8+ {[%clk 0:00:09]}  Kg7 {[%clk 0:00:10]} 51. Kg3 {[%clk 0:00:10]}  Rf7 {[%clk 0:00:10]} 52. Qe5+ {[%clk 0:00:10]}  Rf6 {[%clk 0:00:09]} 53. Kf3 {[%clk 0:00:10]}  Kg6 {[%clk 0:00:10]} 54. Qe8+ {[%clk 0:00:09]}  Kg7 {[%clk 0:00:10]} 55. Ke3 {[%clk 0:00:09]}  Rf7 {[%clk 0:00:11]} 56. Kd4 {[%clk 0:00:09]}  Kg6 {[%clk 0:00:11]} 57. Ke5 {[%clk 0:00:09]}  Kg7 {[%clk 0:00:11]} 58. Ke6 {[%clk 0:00:09]}  Rf6+ {[%clk 0:00:10]} 59. Ke5 {[%clk 0:00:08]}  Rf7 {[%clk 0:00:09]} 60. Qe6 {[%clk 0:00:08]}  f4 {[%clk 0:00:09]} 61. Ke4 {[%clk 0:00:09]}  h5 {[%clk 0:00:09]} 62. Qe5+ {[%clk 0:00:09]}  Kg6 {[%clk 0:00:09]} 63. Qe6+ {[%clk 0:00:07]}  Rf6 {[%clk 0:00:09]} 64. Qe8+ {[%clk 0:00:07]}  Kg7 {[%clk 0:00:09]} 65. Qxh5 {[%clk 0:00:07]}  Rg6 {[%clk 0:00:09]} 66. Kf5 {[%clk 0:00:07]}  Rf6+ {[%clk 0:00:08]} 67. Kxg5 {[%clk 0:00:06]}  Rf5+ {[%clk 0:00:08]} 68. Kxf5 {[%clk 0:00:07]} 1-0


[Site "https://www.chess.com"]

[Event "Titled Tuesday Blitz January 10 Late 2023"]
[White "Pham, Khoi"]
[Black "Yuan, Qingyu"]
[WhiteFideId "1054988"]
[BlackFideId "8609772"]
[WhiteElo "2355"]
[BlackElo "2373"]
[Result "1-0"]
[Round "03"]
[TimeControl "180+2"]
[Date "2023.01.10"]
[WhiteClock "0:00:10"]
[BlackClock "0:00:03"]

1. d4 {[%clk 0:00:00]}  d5 {[%clk 0:00:00]} 2. c4 {[%clk 0:03:00]}  e6 {[%clk 0:03:00]} 3. Nc3 {[%clk 0:03:01]}  Be7 {[%clk 0:03:00]} 4. cxd5 {[%clk 0:03:01]}  exd5 {[%clk 0:03:01]} 5. Bf4 {[%clk 0:03:01]}  c6 {[%clk 0:03:01]} 6. e3 {[%clk 0:03:02]}  Bf5 {[%clk 0:03:01]} 7. Bd3 {[%clk 0:03:02]}  Bxd3 {[%clk 0:03:02]} 8. Qxd3 {[%clk 0:02:59]}  Nf6 {[%clk 0:03:02]} 9. Nf3 {[%clk 0:03:00]}  Nbd7 {[%clk 0:03:01]} 10. O-O {[%clk 0:03:00]}  Nh5 {[%clk 0:03:00]} 11. Bg3 {[%clk 0:03:01]}  O-O {[%clk 0:02:51]} 12. Rab1 {[%clk 0:02:55]}  a5 {[%clk 0:02:48]} 13. a3 {[%clk 0:02:54]}  Nxg3 {[%clk 0:02:43]} 14. hxg3 {[%clk 0:02:54]}  Re8 {[%clk 0:02:42]} 15. b4 {[%clk 0:02:54]}  b5 {[%clk 0:02:26]} 16. e4 {[%clk 0:02:52]}  dxe4 {[%clk 0:02:17]} 17. Nxe4 {[%clk 0:02:45]}  axb4 {[%clk 0:02:08]} 18. axb4 {[%clk 0:02:46]}  Nb6 {[%clk 0:02:04]} 19. Qc2 {[%clk 0:02:47]}  Qd5 {[%clk 0:02:03]} 20. Rfe1 {[%clk 0:02:28]}  Ra2 {[%clk 0:01:53]} 21. Qb3 {[%clk 0:02:20]}  Kf8 {[%clk 0:01:46]} 22. Ne5 {[%clk 0:02:15]}  Qxb3 {[%clk 0:01:35]} 23. Rxb3 {[%clk 0:02:09]}  Rc2 {[%clk 0:01:14]} 24. Nc5 {[%clk 0:02:07]}  Rc8 {[%clk 0:01:15]} 25. Rbe3 {[%clk 0:01:51]}  f6 {[%clk 0:00:42]} 26. Ned7+ {[%clk 0:01:38]}  Kg8 {[%clk 0:00:33]} 27. Rxe7 {[%clk 0:01:36]}  Nd5 {[%clk 0:00:25]} 28. R7e2 {[%clk 0:01:36]}  Nxb4 {[%clk 0:00:25]} 29. Rxc2 {[%clk 0:01:09]}  Nxc2 {[%clk 0:00:25]} 30. Rd1 {[%clk 0:00:27]}  Nb4 {[%clk 0:00:26]} 31. Ne4 {[%clk 0:00:27]}  Rd8 {[%clk 0:00:26]} 32. Ndc5 {[%clk 0:00:24]}  Nc2 {[%clk 0:00:22]} 33. Ne6 {[%clk 0:00:24]}  Rd7 {[%clk 0:00:19]} 34. N4c5 {[%clk 0:00:21]}  Ra7 {[%clk 0:00:17]} 35. d5 {[%clk 0:00:21]}  cxd5 {[%clk 0:00:16]} 36. Rxd5 {[%clk 0:00:18]}  b4 {[%clk 0:00:17]} 37. Rd8+ {[%clk 0:00:19]}  Kf7 {[%clk 0:00:16]} 38. Rb8 {[%clk 0:00:18]}  Ra1+ {[%clk 0:00:16]} 39. Kh2 {[%clk 0:00:17]}  g5 {[%clk 0:00:15]} 40. g4 {[%clk 0:00:17]}  Re1 {[%clk 0:00:14]} 41. Rb7+ {[%clk 0:00:18]}  Ke8 {[%clk 0:00:11]} 42. Kg3 {[%clk 0:00:17]}  Re5 {[%clk 0:00:11]} 43. Rxh7 {[%clk 0:00:16]}  b3 {[%clk 0:00:07]} 44. Rb7 {[%clk 0:00:12]}  Na1 {[%clk 0:00:06]} 45. f3 {[%clk 0:00:11]}  Rd5 {[%clk 0:00:06]} 46. Ne4 {[%clk 0:00:11]}  Rd7 {[%clk 0:00:05]} 47. Nxf6+ {[%clk 0:00:10]}  Ke7 {[%clk 0:00:02]} 48. Nxd7 {[%clk 0:00:10]}  Kxe6 {[%clk 0:00:03]} 49. Nc5+ {[%clk 0:00:10]}  Kd5 {[%clk 0:00:03]} 50. Nxb3 {[%clk 0:00:10]}  Kc6 {[%clk 0:00:04]} 51. Rb8 {[%clk 0:00:11]}  Kc7 {[%clk 0:00:04]} 52. Rb4 {[%clk 0:00:10]}  Nxb3 {[%clk 0:00:03]} 53. Rxb3 {[%clk 0:00:10]} 1-0


[Site "https://www.chess.com"]

[Event "Titled Tuesday Blitz January 10 Late 2023"]
[White "Caruana, Fabiano"]
[Black "Barria Zuniga, Daniel"]
[WhiteFideId "2020009"]
[BlackFideId "3400816"]
[WhiteElo "2764"]
[BlackElo "2341"]
[Result "1-0"]
[Round "03"]
[TimeControl "180+2"]
[Date "2023.01.10"]
[WhiteClock "0:01:59"]
[BlackClock "0:00:47"]

1. c4 {[%clk 0:00:00]}  Nf6 {[%clk 0:00:00]} 2. d4 {[%clk 0:03:00]}  e6 {[%clk 0:02:56]} 3. g4 {[%clk 0:02:59]}  Nxg4 {[%clk 0:02:55]} 4. e4 {[%clk 0:02:56]}  Qh4 {[%clk 0:02:54]} 5. Qe2 {[%clk 0:02:54]}  Nc6 {[%clk 0:02:49]} 6. Nf3 {[%clk 0:02:51]}  Qh5 {[%clk 0:02:48]} 7. Nc3 {[%clk 0:02:49]}  Bb4 {[%clk 0:02:46]} 8. Bd2 {[%clk 0:02:41]}  d6 {[%clk 0:02:40]} 9. O-O-O {[%clk 0:02:35]}  O-O {[%clk 0:02:35]} 10. h3 {[%clk 0:02:32]}  Nf6 {[%clk 0:02:23]} 11. Rg1 {[%clk 0:02:30]}  h6 {[%clk 0:02:21]} 12. Qe3 {[%clk 0:02:28]}  Bxc3 {[%clk 0:02:19]} 13. bxc3 {[%clk 0:02:07]}  Kh8 {[%clk 0:01:21]} 14. Be2 {[%clk 0:02:01]}  Qa5 {[%clk 0:00:49]} 15. Rxg7 {[%clk 0:02:00]}  Kxg7 {[%clk 0:00:47]} 16. Qxh6+ {[%clk 0:01:59]} 1-0


[Site "https://www.chess.com"]

[Event "Titled Tuesday Blitz January 10 Late 2023"]
[White "Vlassov, Nikolai"]
[Black "Xiong, Jeffery"]
[WhiteFideId "4103360"]
[BlackFideId "2047640"]
[WhiteElo "2283"]
[BlackElo "2692"]
[Result "0-1"]
[Round "03"]
[TimeControl "180+2"]
[Date "2023.01.10"]
[WhiteClock "0:00:11"]
[BlackClock "0:00:56"]

1. e4 {[%clk 0:00:00]}  c5 {[%clk 0:00:00]} 2. c3 {[%clk 0:03:00]}  e6 {[%clk 0:02:59]} 3. d4 {[%clk 0:03:00]}  cxd4 {[%clk 0:02:59]} 4. cxd4 {[%clk 0:03:00]}  d5 {[%clk 0:03:00]} 5. e5 {[%clk 0:03:00]}  Nc6 {[%clk 0:03:00]} 6. Nc3 {[%clk 0:03:01]}  Nge7 {[%clk 0:02:59]} 7. Nf3 {[%clk 0:03:01]}  Nf5 {[%clk 0:02:59]} 8. Be3 {[%clk 0:03:01]}  Qb6 {[%clk 0:02:59]} 9. Qd2 {[%clk 0:03:01]}  Bd7 {[%clk 0:02:59]} 10. Bd3 {[%clk 0:03:01]}  Nfxd4 {[%clk 0:02:57]} 11. Nxd4 {[%clk 0:03:00]}  Nxd4 {[%clk 0:02:18]} 12. O-O {[%clk 0:02:59]}  Bc5 {[%clk 0:02:19]} 13. Rac1 {[%clk 0:02:48]}  Rc8 {[%clk 0:02:08]} 14. Rfd1 {[%clk 0:02:34]}  O-O {[%clk 0:01:44]} 15. Bxd4 {[%clk 0:02:28]}  Bxd4 {[%clk 0:01:08]} 16. Bxh7+ {[%clk 0:02:19]}  Kxh7 {[%clk 0:01:09]} 17. Qxd4 {[%clk 0:02:18]}  Qxb2 {[%clk 0:01:10]} 18. Qd3+ {[%clk 0:02:19]}  Kg8 {[%clk 0:01:09]} 19. Rc2 {[%clk 0:01:35]}  Qa3 {[%clk 0:01:08]} 20. h4 {[%clk 0:01:35]}  Rfd8 {[%clk 0:01:08]} 21. h5 {[%clk 0:01:12]}  Ba4 {[%clk 0:01:03]} 22. Nxd5 {[%clk 0:01:08]}  Qxd3 {[%clk 0:00:55]} 23. Rxd3 {[%clk 0:00:11]}  Bxc2 {[%clk 0:00:56]} 0-1


[Site "https://www.chess.com"]

[Event "Titled Tuesday Blitz January 10 Late 2023"]
[White "Kamsky, Gata"]
[Black "Jaferian, Koosha"]
[WhiteFideId "2000024"]
[BlackFideId "12507440"]
[WhiteElo "2665"]
[BlackElo "2233"]
[Result "1-0"]
[Round "03"]
[TimeControl "180+2"]
[Date "2023.01.10"]
[WhiteClock "0:00:22"]
[BlackClock "0:00:07"]

1. e4 {[%clk 0:00:00]}  c6 {[%clk 0:00:00]} 2. d4 {[%clk 0:03:00]}  d5 {[%clk 0:02:57]} 3. exd5 {[%clk 0:02:50]}  cxd5 {[%clk 0:02:58]} 4. Bd3 {[%clk 0:02:47]}  Nc6 {[%clk 0:02:59]} 5. c3 {[%clk 0:02:47]}  Qc7 {[%clk 0:02:59]} 6. Ne2 {[%clk 0:02:47]}  Bg4 {[%clk 0:02:59]} 7. O-O {[%clk 0:02:46]}  e6 {[%clk 0:02:59]} 8. Qe1 {[%clk 0:02:45]}  Nf6 {[%clk 0:02:58]} 9. f3 {[%clk 0:02:45]}  Bh5 {[%clk 0:02:58]} 10. Qh4 {[%clk 0:02:44]}  Rg8 {[%clk 0:02:58]} 11. Bg5 {[%clk 0:02:44]}  Bg6 {[%clk 0:02:58]} 12. Bxg6 {[%clk 0:02:00]}  hxg6 {[%clk 0:02:37]} 13. Nd2 {[%clk 0:01:53]}  Be7 {[%clk 0:02:38]} 14. a4 {[%clk 0:01:52]}  O-O-O {[%clk 0:02:30]} 15. h3 {[%clk 0:01:29]}  Rh8 {[%clk 0:02:30]} 16. Qg3 {[%clk 0:01:21]}  Bd6 {[%clk 0:02:28]} 17. Qf2 {[%clk 0:01:12]}  Rde8 {[%clk 0:02:22]} 18. Rfe1 {[%clk 0:01:10]}  Ne7 {[%clk 0:02:10]} 19. c4 {[%clk 0:01:03]}  dxc4 {[%clk 0:02:08]} 20. Nxc4 {[%clk 0:00:59]}  Ned5 {[%clk 0:01:55]} 21. Nxd6+ {[%clk 0:00:57]}  Qxd6 {[%clk 0:01:38]} 22. Nc3 {[%clk 0:00:54]}  Kb8 {[%clk 0:01:39]} 23. Nb5 {[%clk 0:00:53]}  Qd7 {[%clk 0:01:15]} 24. Qg3+ {[%clk 0:00:52]}  Ka8 {[%clk 0:01:15]} 25. Rec1 {[%clk 0:00:50]}  Rc8 {[%clk 0:01:15]} 26. Qd6 {[%clk 0:00:49]}  Qxd6 {[%clk 0:01:11]} 27. Nxd6 {[%clk 0:00:44]}  Rcf8 {[%clk 0:00:50]} 28. Rc4 {[%clk 0:00:43]}  Nd7 {[%clk 0:00:50]} 29. a5 {[%clk 0:00:40]}  f6 {[%clk 0:00:31]} 30. Bd2 {[%clk 0:00:38]}  a6 {[%clk 0:00:31]} 31. b4 {[%clk 0:00:37]}  Rd8 {[%clk 0:00:30]} 32. b5 {[%clk 0:00:36]}  axb5 {[%clk 0:00:23]} 33. Nxb5 {[%clk 0:00:31]}  Nb8 {[%clk 0:00:22]} 34. Be1 {[%clk 0:00:30]}  Na6 {[%clk 0:00:20]} 35. Bg3 {[%clk 0:00:26]}  Rc8 {[%clk 0:00:20]} 36. Rac1 {[%clk 0:00:26]}  Rxc4 {[%clk 0:00:20]} 37. Rxc4 {[%clk 0:00:25]}  Rd8 {[%clk 0:00:20]} 38. Nd6 {[%clk 0:00:25]}  Nab4 {[%clk 0:00:19]} 39. h4 {[%clk 0:00:25]}  Nc6 {[%clk 0:00:15]} 40. a6 {[%clk 0:00:23]}  Na5 {[%clk 0:00:16]} 41. axb7+ {[%clk 0:00:23]}  Ka7 {[%clk 0:00:11]} 42. Ra4 {[%clk 0:00:23]}  Ka6 {[%clk 0:00:06]} 43. Rxa5+ {[%clk 0:00:22]}  Kxa5 {[%clk 0:00:06]} 44. Nc8 {[%clk 0:00:22]}  Rxc8 {[%clk 0:00:07]} 1-0


[Site "https://www.chess.com"]

[Event "Titled Tuesday Blitz January 10 Late 2023"]
[White "Remizov, Yaroslav"]
[Black "Kim, Yoon-Young"]
[WhiteFideId "34134015"]
[BlackFideId "30908779"]
[WhiteElo "2421"]
[BlackElo "2304"]
[Result "1-0"]
[Round "03"]
[TimeControl "180+2"]
[Date "2023.01.10"]
[WhiteClock "0:00:14"]
[BlackClock "0:00:02"]

1. d4 {[%clk 0:00:00]}  d5 {[%clk 0:00:00]} 2. Nf3 {[%clk 0:03:00]}  Nf6 {[%clk 0:02:56]} 3. g3 {[%clk 0:02:59]}  b5 {[%clk 0:02:56]} 4. Bg2 {[%clk 0:02:58]}  e6 {[%clk 0:02:52]} 5. O-O {[%clk 0:02:56]}  Bb7 {[%clk 0:02:52]} 6. b3 {[%clk 0:02:49]}  Nbd7 {[%clk 0:02:53]} 7. Bb2 {[%clk 0:02:10]}  Be7 {[%clk 0:02:40]} 8. e3 {[%clk 0:02:06]}  O-O {[%clk 0:02:36]} 9. Qe2 {[%clk 0:01:57]}  b4 {[%clk 0:02:36]} 10. Rd1 {[%clk 0:01:57]}  c5 {[%clk 0:02:36]} 11. dxc5 {[%clk 0:01:56]}  Nxc5 {[%clk 0:02:33]} 12. Nbd2 {[%clk 0:01:54]}  a5 {[%clk 0:02:33]} 13. Rac1 {[%clk 0:01:49]}  Ba6 {[%clk 0:02:26]} 14. Qe1 {[%clk 0:01:48]}  Qb6 {[%clk 0:02:25]} 15. Ne5 {[%clk 0:01:46]}  Rac8 {[%clk 0:02:25]} 16. f4 {[%clk 0:01:41]}  Rfd8 {[%clk 0:02:24]} 17. g4 {[%clk 0:01:36]}  Nfe4 {[%clk 0:02:24]} 18. Bd4 {[%clk 0:01:35]}  Qc7 {[%clk 0:02:16]} 19. Nxe4 {[%clk 0:01:34]}  Nxe4 {[%clk 0:02:11]} 20. Bxe4 {[%clk 0:01:31]}  dxe4 {[%clk 0:02:07]} 21. c4 {[%clk 0:01:31]}  f6 {[%clk 0:02:08]} 22. Qg3 {[%clk 0:01:30]}  fxe5 {[%clk 0:02:05]} 23. Bxe5 {[%clk 0:01:02]}  Rxd1+ {[%clk 0:02:02]} 24. Rxd1 {[%clk 0:01:03]}  Qc6 {[%clk 0:01:47]} 25. f5 {[%clk 0:01:04]}  Rd8 {[%clk 0:01:48]} 26. Rf1 {[%clk 0:01:04]}  Rf8 {[%clk 0:01:46]} 27. Bd4 {[%clk 0:01:04]}  Qd6 {[%clk 0:01:43]} 28. Be5 {[%clk 0:00:56]}  Qd3 {[%clk 0:01:39]} 29. Bd4 {[%clk 0:00:45]}  Bc8 {[%clk 0:01:34]} 30. g5 {[%clk 0:00:45]}  exf5 {[%clk 0:01:23]} 31. Qe5 {[%clk 0:00:32]}  Rf7 {[%clk 0:01:00]} 32. Qb8 {[%clk 0:00:32]}  Bf8 {[%clk 0:01:00]} 33. Qxc8 {[%clk 0:00:32]}  f4 {[%clk 0:00:47]} 34. Qe6 {[%clk 0:00:31]}  f3 {[%clk 0:00:48]} 35. c5 {[%clk 0:00:24]}  Qe2 {[%clk 0:00:42]} 36. Rf2 {[%clk 0:00:23]}  Qe1+ {[%clk 0:00:35]} 37. Rf1 {[%clk 0:00:23]}  Qh4 {[%clk 0:00:30]} 38. Rf2 {[%clk 0:00:24]}  Qxg5+ {[%clk 0:00:24]} 39. Kf1 {[%clk 0:00:19]}  Qh4 {[%clk 0:00:22]} 40. c6 {[%clk 0:00:19]}  Qg5 {[%clk 0:00:15]} 41. c7 {[%clk 0:00:18]}  Qb5+ {[%clk 0:00:05]} 42. Ke1 {[%clk 0:00:15]}  Qd3 {[%clk 0:00:06]} 43. c8=Q {[%clk 0:00:15]}  Qb1+ {[%clk 0:00:02]} 44. Kd2 {[%clk 0:00:14]} 1-0


[Site "https://www.chess.com"]

[Event "Titled Tuesday Blitz January 10 Late 2023"]
[White "Sourath Biswas"]
[Black "Holt, Conrad"]
[WhiteFideId "35091484"]
[BlackFideId "2034387"]
[WhiteElo "2281"]
[BlackElo "2540"]
[Result "1-0"]
[Round "03"]
[TimeControl "180+2"]
[Date "2023.01.10"]
[WhiteClock "0:00:16"]
[BlackClock "0:00:36"]

1. d4 {[%clk 0:00:00]}  d5 {[%clk 0:00:00]} 2. Bf4 {[%clk 0:03:00]}  c5 {[%clk 0:02:54]} 3. e3 {[%clk 0:02:48]}  Nc6 {[%clk 0:02:52]} 4. Nf3 {[%clk 0:02:48]}  Nf6 {[%clk 0:02:52]} 5. Nbd2 {[%clk 0:02:47]}  e6 {[%clk 0:02:46]} 6. c3 {[%clk 0:02:45]}  Bd6 {[%clk 0:02:43]} 7. Bg3 {[%clk 0:02:42]}  O-O {[%clk 0:02:42]} 8. Bd3 {[%clk 0:02:37]}  c4 {[%clk 0:02:28]} 9. Bc2 {[%clk 0:02:37]}  b5 {[%clk 0:02:14]} 10. e4 {[%clk 0:02:37]}  dxe4 {[%clk 0:02:12]} 11. Nxe4 {[%clk 0:02:37]}  Be7 {[%clk 0:02:10]} 12. Qe2 {[%clk 0:02:38]}  Bb7 {[%clk 0:02:08]} 13. O-O {[%clk 0:02:35]}  a6 {[%clk 0:02:07]} 14. Ne5 {[%clk 0:01:56]}  Nxe5 {[%clk 0:02:00]} 15. Bxe5 {[%clk 0:01:52]}  Nxe4 {[%clk 0:01:58]} 16. Bxe4 {[%clk 0:01:53]}  Bxe4 {[%clk 0:01:53]} 17. Qxe4 {[%clk 0:01:54]}  Qd5 {[%clk 0:01:50]} 18. Qg4 {[%clk 0:01:55]}  f6 {[%clk 0:01:48]} 19. Bf4 {[%clk 0:01:45]}  Qf5 {[%clk 0:01:48]} 20. Qxf5 {[%clk 0:01:45]}  exf5 {[%clk 0:01:17]} 21. Rfe1 {[%clk 0:01:45]}  Kf7 {[%clk 0:01:17]} 22. a4 {[%clk 0:01:45]}  g5 {[%clk 0:01:16]} 23. Bc7 {[%clk 0:01:01]}  Rfc8 {[%clk 0:01:12]} 24. Bb6 {[%clk 0:00:37]}  Rab8 {[%clk 0:01:12]} 25. a5 {[%clk 0:00:28]}  Bd6 {[%clk 0:01:08]} 26. g3 {[%clk 0:00:28]}  h5 {[%clk 0:01:04]} 27. Rad1 {[%clk 0:00:26]}  h4 {[%clk 0:01:03]} 28. d5 {[%clk 0:00:23]}  h3 {[%clk 0:00:59]} 29. Re6 {[%clk 0:00:20]}  Be5 {[%clk 0:00:56]} 30. Rc6 {[%clk 0:00:20]}  Rxc6 {[%clk 0:00:54]} 31. dxc6 {[%clk 0:00:20]}  Rc8 {[%clk 0:00:37]} 32. c7 {[%clk 0:00:20]}  g4 {[%clk 0:00:36]} 33. Rd8 {[%clk 0:00:16]} 1-0


[Site "https://www.chess.com"]